Workbook

Sheet 1. Info
AC1: =IF('3. Data_Input_Sheet'!M12=0, "", '3. Data_Input_Sheet'!M12) -> Interrogatory Responses
P11: Version | Q11: 6
F16: Utility Name | G16: Entegrus Powerlines Inc.
F18: Service Territory
F20: Assigned EB Number | G20: EB-2015-0061 | AA20: Company Name
Z21: 1 | AA21: Algoma Power Inc.
F22: Name and Title | G22: Andrya Eagen, Senior Regulatory Specialist | Z22: 2 | AA22: Atikokan Hydro Inc.
Z23: 3 | AA23: Attawapiskat Power Corp.
F24: Phone Number | G24: 519-352-6300 Ext 243 | Z24: 4 | AA24: Bluewater Power Distribution Corporation
Z25: 5 | AA25: Brant County Power Inc.
F26: Email Address | G26: regulatory@entegrus.com | Z26: 6 | AA26: Brantford Power Inc.
Z27: 7 | AA27: Burlington Hydro Inc.
Z28: 8 | AA28: Cambridge and North Dumfries Hydro Inc.
Z29: 9 | AA29: Canadian Niagara Power Inc.
Z30: 10 | AA30: Centre Wellington Hydro Ltd.
Z31: 11 | AA31: Chapleau Public Utilities Corporation
Z32: 12 | AA32: Clinton Power Corporation
Z33: 13 | AA33: COLLUS Power Corporation
Z34: 14 | AA34: Cooperative Hydro Embrun Inc.
Z35: 15 | AA35: E.L.K. Energy Inc.
Z36: 16 | AA36: Enersource Hydro Mississauga Inc.
Z37: 17 | AA37: Entegrus Powerlines Inc.
Z38: 18 | AA38: ENWIN Utilities Ltd.
Z39: 19 | AA39: Erie Thames Powerlines Corporation
Z40: 20 | AA40: Espanola Regional Hydro Distribution Corporation
Z41: 21 | AA41: Essex Powerlines Corporation
Z42: 22 | AA42: Festival Hydro Inc.
Z43: 23 | AA43: Festival Hydro Inc. - Hensall
Z44: 24 | AA44: Fort Albany Power Corporation
Z45: 25 | AA45: Fort Frances Power Corporation
Z46: 26 | AA46: Greater Sudbury Hydro Inc.
Z47: 27 | AA47: Grimsby Power Inc.
Z48: 28 | AA48: Guelph Hydro Electric Systems Inc.
Z49: 29 | AA49: Haldimand County Hydro Inc.
Z50: 30 | AA50: Halton Hills Hydro Inc.
Z51: 31 | AA51: Hearst Power Distribution Company Limited
Z52: 32 | AA52: Horizon Utilities Corporation
Z53: 33 | AA53: Hydro 2000 Inc.
Z54: 34 | AA54: Hydro Hawkesbury Inc.
Z55: 35 | AA55: Hydro One Brampton Networks Inc.
Z56: 36 | AA56: Hydro One Networks Inc.
Z57: 37 | AA57: Hydro Ottawa Limited
Z58: 38 | AA58: Innisfil Hydro Distribution Systems Limited
Z59: 39 | AA59: Kashechewan Power Corporation
Z60: 40 | AA60: Kenora Hydro Electric Corporation Ltd.
Z61: 41 | AA61: Kingston Hydro Corporation
Z62: 42 | AA62: Kitchener-Wilmot Hydro Inc.
Z63: 43 | AA63: Lakefront Utilities Inc.
Z64: 44 | AA64: Lakeland Power Distribution Ltd.
Z65: 45 | AA65: London Hydro Inc.
Z66: 46 | AA66: Midland Power Utility Corporation
Z67: 47 | AA67: Milton Hydro Distribution inc.
Z68: 48 | AA68: Newmarket - Tay Power Distribution Ltd.
Z69: 49 | AA69: Niagara Peninsula Energy Inc.
Z70: 50 | AA70: Niagara-on-the-Lake Hydro Inc.
Z71: 51 | AA71: Norfolk Power Distribution Inc.
Z72: 52 | AA72: North Bay Hydro Distribution Limited
Z73: 53 | AA73: Northern Ontario Wires Inc.
Z74: 54 | AA74: Oakville Hydro Electricity Distribution Inc.
Z75: 55 | AA75: Orangeville Hydro Limited
Z76: 56 | AA76: Orillia Power Distribution Corporation
Z77: 57 | AA77: Oshawa PUC Networks Inc.
Z78: 58 | AA78: Ottawa River Power Corporation
Z79: 59 | AA79: Parry Sound Power Corporation
Z80: 60 | AA80: Peterborough Distribution Incorporated
Z81: 61 | AA81: PowerStream Inc.
Z82: 62 | AA82: PUC Distribution Inc.
Z83: 63 | AA83: Renfrew Hydro Inc.
Z84: 64 | AA84: Rideau St. Lawrence Distribution Inc.
Z85: 65 | AA85: Sioux Lookout Hydro Inc.
Z86: 66 | AA86: St. Thomas Energy Inc.
Z87: 67 | AA87: Thunder Bay Hydro Electricity Distribution Inc.
Z88: 68 | AA88: Tillsonburg Hydro Inc.
Z89: 69 | AA89: Toronto Hydro-Electric System Limited
Z90: 70 | AA90: Veridian Connections Inc.
Z91: 71 | AA91: Wasaga Distribution Inc.
Z92: 72 | AA92: Waterloo North Hydro Inc.
Z93: 73 | AA93: Welland Hydro-Electric System Corp.
Z94: 74 | AA94: Wellington North Power Inc.
Z95: 75 | AA95: West Coast Huron Energy Inc.
Z96: 76 | AA96: West Perth Power Inc.
Z97: 77 | AA97: Westario Power Inc.
Z98: 78 | AA98: Whitby Hydro Electric Corporation
Z99: 79 | AA99: Woodstock Hydro Services Inc.

Sheet 2. Table of Contents
D11: 1. Info | I11: 6. Taxes_PILs
D13: 2. Table of Contents | I13: 7. Cost_of_Capital
D15: 3. Data_Input_Sheet | I15: 8. Rev_Def_Suff
D17: 4. Rate_Base | I17: 9. Rev_Reqt
D19: 5. Utility Income | I19: 10. Tracking Sheet
A24: Notes:
A25: (1) | B25: Pale green cells represent inputs
A26: (2) | B26: Pale green boxes at the bottom of each page are for additional notes
A27: (3) | B27: Pale yellow cells represent drop-down lists
A28: (4) | B28: Please note that this model uses MACROS. Before starting, please ensure that macros have been enabled.
A29: (5) | B29: Completed versions of the Revenue Requirement Work Form are required to be filed in working Microsoft Excel format.

Sheet 3. Data_Input_Sheet
U1: =CONCATENATE('2. Table of Contents'!$F$6," ",'2. Table of Contents'!$G$6) -> 
B9: Data Input (1)
E12: Initial Application | G12: (2) | I12: =IF(ISBLANK(M12),"","Adjustments") -> Adjustments | M12: Interrogatory Responses | O12: (6) | Q12: =IF(ISBLANK(M12),"","Adjustments") -> Adjustments | U12: Per Board Decision
B15: 1 | C15: Rate Base
C16: Gross Fixed Assets (average) | E16: 143730124.2 | I16: -295401.6045 | M16: =IF(ISBLANK(E16),0,E16+I16) -> 143434722.6 | U16: =IF(ISBLANK(E16),"",E16+I16+Q16) -> 143434722.6
C17: Accumulated Depreciation (average) | E17: -67091078.17 | G17: (5) | I17: 236002.7826 | M17: =IF(ISBLANK(E17),0,E17+I17) -> -66855075.38 | U17: =IF(ISBLANK(E17),"",E17+I17+Q17) -> -66855075.38
C18: Allowance for Working Capital:
C19: Controllable Expenses | E19: 9762015.06 | I19: 0 | M19: =IF(ISBLANK(E19),0,E19+I19) -> 9762015.06 | U19: =IF(ISBLANK(E19),"",E19+I19+Q19) -> 9762015.06
C20: Cost of Power | E20: 110889168 | I20: 8726686.713 | M20: =IF(ISBLANK(E20),0,E20+I20) -> 119615854.7 | U20: =IF(ISBLANK(E20),"",E20+I20+Q20) -> 119615854.7
C21: Working Capital Rate (%) | E21: 0.0822 | G21: (9) | M21: 0.0821 | O21: (9) | U21: =IF(ISBLANK(M21),IF(ISBLANK(E21),0,E21),M21) -> 0.0821 | W21: (9)
B23: 2 | C23: Utility Income
C24: Operating Revenues:
C25: Distribution Revenue at Current Rates | E25: 18033987.17 | I25: =IF(ISBLANK(M25),"",IF(ISBLANK(E25),"",M25-E25)) -> 113280.5398 | M25: 18147267.71 | Q25: =IF(ISBLANK(U25),"",IF(ISBLANK(M25),"",U25-M25)) -> 
C26: Distribution Revenue at Proposed Rates | E26: 18189983.87 | I26: =IF(ISBLANK(M26),"",IF(ISBLANK(E26),"",M26-E26)) -> -177722.0629 | M26: 18012261.81 | Q26: =IF(ISBLANK(U26),"",IF(ISBLANK(M26),"",U26-M26)) -> 
C27: Other Revenue:
C28: Specific Service Charges | E28: 327731.326 | I28: =IF(ISBLANK(M28),"",IF(ISBLANK(E28),"",M28-E28)) -> 0 | M28: 327731.326 | Q28: =IF(ISBLANK(U28),"",IF(ISBLANK(M28),"",U28-M28)) -> 
C29: Late Payment Charges | E29: 250000 | I29: =IF(ISBLANK(M29),"",IF(ISBLANK(E29),"",M29-E29)) -> 0 | M29: 250000 | Q29: =IF(ISBLANK(U29),"",IF(ISBLANK(M29),"",U29-M29)) -> 
C30: Other Distribution Revenue | E30: 436737.6082 | I30: =IF(ISBLANK(M30),"",IF(ISBLANK(E30),"",M30-E30)) -> 0 | M30: 436737.6082 | Q30: =IF(ISBLANK(U30),"",IF(ISBLANK(M30),"",U30-M30)) -> 
C31: Other Income and Deductions | E31: 174052.148 | I31: =IF(ISBLANK(M31),"",IF(ISBLANK(E31),"",M31-E31)) -> 0 | M31: 174052.148 | Q31: =IF(ISBLANK(U31),"",IF(ISBLANK(M31),"",U31-M31)) -> 
D33: Total Revenue Offsets | E33: 1188521.082 | G33: (7) | I33: =IF(ISBLANK(M33),"",IF(ISBLANK(E33),"",M33-E33)) -> 0 | M33: 1188521.082 | Q33: =IF(ISBLANK(U33),"",IF(ISBLANK(M33),"",U33-M33)) -> 
C35: Operating Expenses:
C36: OM+A Expenses | E36: 9495813.06 | I36: 0 | M36: =IF(ISBLANK(E36),"",E36+I36) -> 9495813.06 | U36: =IF(ISBLANK(E36),"",E36+I36+Q36) -> 9495813.06
C37: Depreciation/Amortization | E37: 3849791.271 | I37: -23757.69818 | M37: =IF(ISBLANK(E37),"",E37+I37) -> 3826033.573 | U37: =IF(ISBLANK(E37),"",E37+I37+Q37) -> 3826033.573
C38: Property taxes | E38: 243162 | I38: 0 | M38: =IF(ISBLANK(E38),"",E38+I38) -> 243162 | U38: =IF(ISBLANK(E38),"",E38+I38+Q38) -> 243162
C39: Capital taxes | E39: =IF(ISBLANK(E48),"",E48) ->  | M39: =IF(ISBLANK(M48),"",M48) ->  | U39: =IF(ISBLANK(U48),"",U48) -> 
C40: Other expenses | E40: 23040 | I40: 0 | M40: =IF(ISBLANK(E40),"",E40+I40) -> 23040 | U40: =IF(ISBLANK(E40),"",E40+I40+Q40) -> 23040
B42: 3 | C42: Taxes/PILs
C43: Taxable Income:
D44: Adjustments required to arrive at taxable income | E44: -2583927.649 | G44: (3) | M44: -2645192
C45: Utility Income Taxes and Rates:
C46: Income taxes (not grossed up) | E46: 117533.8725 | M46: 97489.49709
C47: Income taxes (grossed up) | E47: =IF(ISBLANK(E46),"",E46/(1-SUM(E49:E50))) -> 159910.0306 | M47: =IF(ISBLANK(M46),"",M46/(1-SUM(M49:M50))) -> 132638.7715 | U47: =IF(ISBLANK(U46),"",U46/(1-SUM(U49:U50))) -> 
C48: Capital Taxes
C49: Federal tax (%) | E49: 0.15 | M49: 0.15
C50: Provincial tax (%) | E50: 0.115 | M50: 0.115
C51: Income Tax Credits | E51: -51000 | M51: -51000
B53: 4 | C53: Capitalization/Cost of Capital
C54: Capital Structure:
C55: Long-term debt Capitalization Ratio (%) | E55: 0.56 | M55: 0.56
C56: Short-term debt Capitalization Ratio (%) | E56: 0.04 | G56: (8) | M56: 0.04 | O56: (8) | W56: (8)
C57: Common Equity Capitalization Ratio (%) | E57: 0.4 | M57: 0.4
C58: Prefered Shares Capitalization Ratio (%)
E59: =SUM(E55:E58) -> 1 | M59: =SUM(M55:M58) -> 1 | U59: =SUM(U55:U58) -> 0
E60: =IF(ISBLANK(E57),"",IF(SUM(E55:E58)=100%,"","Capital Structure must total 100%")) ->  | M60: =IF(ISBLANK(M57),"",IF(SUM(M55:M58)=100%,"","Capital Structure must total 100%")) ->  | U60: =IF(ISBLANK(U57),"",IF(SUM(U55:U58)=100%,"","Capital Structure must total 100%")) -> 
C61: Cost of Capital
C62: Long-term debt Cost Rate (%) | E62: 0.0477 | M62: 0.0454
C63: Short-term debt Cost Rate (%) | E63: 0.0216 | M63: 0.0165
C64: Common Equity Cost Rate (%) | E64: 0.093 | M64: 0.0919
C65: Prefered Shares Cost Rate (%)
A68: Notes:
B69: General | C69: Data inputs are required on Sheets 3. Data from Sheet 3 will automatically complete calculations on sheets 4 through 9 (Rate Base through Revenue Requirement). Sheets 4 through 9 do not require any inputs except for notes that the Applicant may wish to enter to support the results. Pale green cells are available on sheets 4 through 9 to enter both footnotes beside key cells and the related text for the notes at the bottom of each sheet.
B70: (1) | C70: All inputs are in dollars ($) except where inputs are individually identified as percentages (%)
B71: (2) | C71: Data in column E is for Application as originally filed. For updated revenue requirement as a result of interrogatory responses, technical or settlement conferences, etc., use colimn M and Adjustments in column I
B72: (3) | C72: Net of addbacks and deductions to arrive at taxable income.
B73: (4) | C73: Average of Gross Fixed Assets at beginning and end of the Test Year
B74: (5) | C74: Average of Accumulated Depreciation at the beginning and end of the Test Year. Enter as a negative amount.
B75: (6) | C75: Select option from drop-down list by clicking on cell M10. This column allows for the application update reflecting the end of discovery or Argument-in-Chief. Also, the outcome of any Settlement Process can be reflected.
B76: (7) | C76: Input total revenue offsets for deriving the base revenue requirement from the service revenue requirement
B77: (8) | C77: 4.0% unless an Applicant has proposed or been approved for another amount.
B78: (9) | C78: The default Working Capital Allowance factor is 7.5% (of Cost of Power plus controllable expenses), per the letter issued by the Board on June 3, 2015. Alternatively, WCA factor based on lead-lag study or approved WCA factor for another distributor, with supporting rationale.

Sheet 4. Rate_Base
B6: Rate Base and Working Capital
D10: Rate Base
B11: Line No. | D11: Particulars | G11: Initial Application | K11: =IF(ISBLANK('3. Data_Input_Sheet'!M12),"",'3. Data_Input_Sheet'!I12) -> Adjustments | O11: =IF(ISBLANK('3. Data_Input_Sheet'!M12)," ",'3. Data_Input_Sheet'!M12) -> Interrogatory Responses | S11: =IF(ISBLANK('3. Data_Input_Sheet'!Q12),"",'3. Data_Input_Sheet'!Q12) -> Adjustments | W11: ='3. Data_Input_Sheet'!U12 -> Per Board Decision
B13: 1 | D13: Gross Fixed Assets (average) | E13: (3) | G13: ='3. Data_Input_Sheet'!E16 -> 143730124.2 | K13: ='3. Data_Input_Sheet'!I16 -> -295401.6045 | O13: =G13+K13 -> 143434722.6 | S13: ='3. Data_Input_Sheet'!Q16 -> 0 | W13: =G13+K13+S13 -> 143434722.6
B14: 2 | D14: Accumulated Depreciation (average) | E14: (3) | G14: ='3. Data_Input_Sheet'!E17 -> -67091078.17 | K14: ='3. Data_Input_Sheet'!I17 -> 236002.7826 | O14: =G14+K14 -> -66855075.38 | S14: ='3. Data_Input_Sheet'!Q17 -> 0 | W14: =G14+K14+S14 -> -66855075.38
B15: 3 | D15: Net Fixed Assets (average) | E15: (3) | G15: =SUM(G13:G14) -> 76639046.03 | K15: =SUM(K13:K14) -> -59398.82199 | O15: =SUM(O13:O14) -> 76579647.21 | S15: =SUM(S13:S14) -> 0 | W15: =SUM(W13:W14) -> 76579647.21
B17: 4 | D17: Allowance for Working Capital | E17: (1) | G17: =G30 -> 9917527.25 | K17: =K30 -> 704395.8608 | O17: =O30 -> 10621923.11 | S17: =S30 -> 0 | W17: =W30 -> 10621923.11
D18: Total Rate Base | G18: =G17+G15 -> 86556573.28 | K18: =K17+K15 -> 644997.0388 | O18: =O17+O15 -> 87201570.32 | S18: =S17+S15 -> 0 | W18: =W15+W17 -> 87201570.32
B19: 5
C20: (1) | D20: Allowance for Working Capital - Derivation
B24: 6 | D24: Controllable Expenses | G24: ='3. Data_Input_Sheet'!E19 -> 9762015.06 | K24: ='3. Data_Input_Sheet'!I19 -> 0 | O24: =G24+K24 -> 9762015.06 | S24: ='3. Data_Input_Sheet'!Q19 -> 0 | W24: =G24+K24+S24 -> 9762015.06
B25: 7 | D25: Cost of Power | G25: ='3. Data_Input_Sheet'!E20 -> 110889168 | K25: ='3. Data_Input_Sheet'!I20 -> 8726686.713 | O25: =G25+K25 -> 119615854.7 | S25: ='3. Data_Input_Sheet'!Q20 -> 0 | W25: =G25+K25+S25 -> 119615854.7
B26: 8 | D26: Working Capital Base | G26: =SUM(G24:G25) -> 120651183.1 | K26: =K24+K25 -> 8726686.713 | O26: =SUM(O24:O25) -> 129377869.8 | S26: =S24+S25 -> 0 | W26: =SUM(W24:W25) -> 129377869.8
B28: 9 | D28: Working Capital Rate % | E28: (2) | G28: ='3. Data_Input_Sheet'!E21 -> 0.0822 | K28: =O28-G28 -> -0.0001 | O28: ='3. Data_Input_Sheet'!M21 -> 0.0821 | S28: =W28-O28 -> 0 | W28: ='3. Data_Input_Sheet'!U21 -> 0.0821
B30: 10 | D30: Working Capital Allowance | G30: =G26*G28 -> 9917527.25 | K30: =O30-G30 -> 704395.8608 | O30: =O26*O28 -> 10621923.11 | S30: =W30-O30 -> 0 | W30: =W26*W28 -> 10621923.11
B33: Notes
B34: (2) | D34: Some Applicants may have a unique rate as a result of a lead-lag study. The default rate for 2016 cost of service applications is 7.5%, per the letter issued by the Board on June 3, 2015. Alternatively, a utility could conduct and file its own lead-lag study.
B35: (3) | D35: Average of opening and closing balances for the year.

Sheet 5. Utility Income
B11: Utility Income
B13: Line No. | D13: Particulars | F13: Initial Application | J13: =IF(N13="","","Adjustments") -> Adjustments | N13: =IF(ISBLANK('3. Data_Input_Sheet'!M12),"",'3. Data_Input_Sheet'!M12) -> Interrogatory Responses | R13: =IF(N13="","","Adjustments") -> Adjustments | V13: ='3. Data_Input_Sheet'!U12 -> Per Board Decision
D15: Operating Revenues:
B16: 1 | D16: Distribution Revenue (at Proposed Rates) | F16: ='3. Data_Input_Sheet'!E26 -> 18189983.87 | J16: =N16-F16 -> -177722.0629 | N16: ='3. Data_Input_Sheet'!M26 -> 18012261.81 | R16: =V16-N16 -> 0 | V16: =IF(ISBLANK('3. Data_Input_Sheet'!U26),'5. Utility Income'!N16,'3. Data_Input_Sheet'!U26) -> 18012261.81
B17: 2 | D17: Other Revenue | E17: (1) | F17: =F48 -> 1188521.082 | J17: =N17-F17 -> 0 | N17: =N48 -> 1188521.082 | R17: =V17-N17 -> 0 | V17: =V48 -> 1188521.082
F18: =SUM(F16:F17) -> 19378504.95 | J18: =SUM(J16:J17) -> -177722.0629 | N18: =SUM(N16:N17) -> 19200782.89 | R18: =SUM(R16:R17) -> 0 | V18: =SUM(V16:V17) -> 19200782.89
B19: 3 | D19: Total Operating Revenues
D21: Operating Expenses:
B22: 4 | D22: OM+A Expenses | F22: ='3. Data_Input_Sheet'!E36 -> 9495813.06 | J22: ='3. Data_Input_Sheet'!I36 -> 0 | N22: ='3. Data_Input_Sheet'!M36 -> 9495813.06 | R22: ='3. Data_Input_Sheet'!Q36 -> 0 | V22: ='3. Data_Input_Sheet'!U36 -> 9495813.06
B23: 5 | D23: Depreciation/Amortization | F23: ='3. Data_Input_Sheet'!E37 -> 3849791.271 | J23: ='3. Data_Input_Sheet'!I37 -> -23757.69818 | N23: ='3. Data_Input_Sheet'!M37 -> 3826033.573 | R23: ='3. Data_Input_Sheet'!Q37 -> 0 | V23: ='3. Data_Input_Sheet'!U37 -> 3826033.573
B24: 6 | D24: Property taxes | F24: ='3. Data_Input_Sheet'!E38 -> 243162 | J24: ='3. Data_Input_Sheet'!I38 -> 0 | N24: ='3. Data_Input_Sheet'!M38 -> 243162 | R24: ='3. Data_Input_Sheet'!Q38 -> 0 | V24: ='3. Data_Input_Sheet'!U38 -> 243162
B25: 7 | D25: Capital taxes | F25: ='6. Taxes_PILs'!G25 -> 0 | J25: =N25-F25 -> 0 | N25: ='6. Taxes_PILs'!K25 -> 0 | R25: =V25-N25 -> 0 | V25: ='6. Taxes_PILs'!O25 -> 0
B26: 8 | D26: Other expense | F26: ='3. Data_Input_Sheet'!E40 -> 23040 | J26: ='3. Data_Input_Sheet'!I40 -> 0 | N26: ='3. Data_Input_Sheet'!M40 -> 23040 | R26: ='3. Data_Input_Sheet'!Q40 -> 0 | V26: ='3. Data_Input_Sheet'!U40 -> 23040
F27: =SUM(F22:F26) -> 13611806.33 | J27: =SUM(J22:J26) -> -23757.69818 | N27: =SUM(N22:N26) -> 13588048.63 | R27: =SUM(R22:R26) -> 0 | V27: =SUM(V22:V26) -> 13588048.63
B28: 9 | D28: Subtotal (lines 4 to 8)
B30: 10 | D30: Deemed Interest Expense | F30: ='7. Cost_of_Capital'!P19 -> 2386884.065 | J30: =N30-F30 -> -112318.3046 | N30: ='7. Cost_of_Capital'!P35 -> 2274565.76 | R30: =V30-N30 -> 130104.7429 | V30: ='7. Cost_of_Capital'!P51 -> 2404670.503
B32: 11 | D32: Total Expenses (lines 9 to 10) | F32: =F27+F30 -> 15998690.4 | J32: =J30+J27 -> -136076.0027 | N32: =N30+N27 -> 15862614.39 | R32: =R30+R27 -> 130104.7429 | V32: =V27+V30 -> 15992719.14
B34: 12 | D34: Utility income before income taxes | F34: =F18-(F32) -> 3379814.557 | J34: =J18-(J32) -> -41646.06011 | N34: =N18-(N32) -> 3338168.496 | R34: =R18-(R32) -> -130104.7429 | V34: =V18-(V32) -> 3208063.753
F35: ='6. Taxes_PILs'!G31 -> 159910.0306 | J35: =N35-F35 -> -27271.25901 | N35: ='6. Taxes_PILs'!K31 -> 132638.7715 | R35: =V35-N35 -> 0 | V35: =IF('6. Taxes_PILs'!O31=0,N35,'6. Taxes_PILs'!O31) -> 132638.7715
B36: 13 | D36: Income taxes (grossed-up)
F37: =F34-F35 -> 3219904.526 | J37: =J34-J35 -> -14374.8011 | N37: =N34-N35 -> 3205529.725 | R37: =R34-R35 -> -130104.7429 | V37: =V34-V35 -> 3075424.982
B38: 14 | D38: Utility net income
B42: Notes
B44: (1) | D44: Specific Service Charges | F44: ='3. Data_Input_Sheet'!E28 -> 327731.326 | J44: ='3. Data_Input_Sheet'!I28 -> 0 | N44: ='3. Data_Input_Sheet'!M28 -> 327731.326 | R44: ='3. Data_Input_Sheet'!Q28 ->  | V44: =IF(ISBLANK('3. Data_Input_Sheet'!U28),N44,'3. Data_Input_Sheet'!U28) -> 327731.326
D45: Late Payment Charges | F45: ='3. Data_Input_Sheet'!E29 -> 250000 | J45: ='3. Data_Input_Sheet'!I29 -> 0 | N45: ='3. Data_Input_Sheet'!M29 -> 250000 | R45: ='3. Data_Input_Sheet'!Q29 ->  | V45: =IF(ISBLANK('3. Data_Input_Sheet'!U29),N45,'3. Data_Input_Sheet'!U29) -> 250000
D46: Other Distribution Revenue | F46: ='3. Data_Input_Sheet'!E30 -> 436737.6082 | J46: ='3. Data_Input_Sheet'!I30 -> 0 | N46: ='3. Data_Input_Sheet'!M30 -> 436737.6082 | R46: ='3. Data_Input_Sheet'!Q30 ->  | V46: =IF(ISBLANK('3. Data_Input_Sheet'!U30),N46,'3. Data_Input_Sheet'!U30) -> 436737.6082
D47: Other Income and Deductions | F47: ='3. Data_Input_Sheet'!E31 -> 174052.148 | J47: ='3. Data_Input_Sheet'!I31 -> 0 | N47: ='3. Data_Input_Sheet'!M31 -> 174052.148 | R47: ='3. Data_Input_Sheet'!Q31 ->  | V47: =IF(ISBLANK('3. Data_Input_Sheet'!U31),N47,'3. Data_Input_Sheet'!U31) -> 174052.148
F48: =SUM(F44:F47) -> 1188521.082 | J48: =SUM(J44:J47) -> 0 | N48: =SUM(N44:N47) -> 1188521.082 | R48: =SUM(R44:R47) -> 0 | V48: =SUM(V44:V47) -> 1188521.082
D49: Total Revenue Offsets

Sheet 6. Taxes_PILs
B9: Taxes/PILs
B12: Line No. | D12: Particulars | G12: Application | K12: =IF(ISBLANK('3. Data_Input_Sheet'!M12),"",'3. Data_Input_Sheet'!M12) -> Interrogatory Responses | O12: ='3. Data_Input_Sheet'!U12 -> Per Board Decision
D14: Determination of Taxable Income
B16: 1 | D16: Utility net income before taxes | G16: ='7. Cost_of_Capital'!P22 -> 3219904.526 | K16: ='7. Cost_of_Capital'!P38 -> 3205529.725 | O16: ='7. Cost_of_Capital'!P54 -> 3243898.416
B18: 2 | D18: Adjustments required to arrive at taxable utility income | G18: ='3. Data_Input_Sheet'!E44 -> -2583927.649 | K18: ='3. Data_Input_Sheet'!M44 -> -2645192 | O18: =IF(ISBLANK('3. Data_Input_Sheet'!U44),G18,'3. Data_Input_Sheet'!U44) -> -2583927.649
B20: 3 | D20: Taxable income | G20: =G16+G18 -> 635976.8772 | K20: =K16+K18 -> 560337.7249 | O20: =O16+O18 -> 659970.7671
D22: Calculation of Utility income Taxes
B24: 4 | D24: Income taxes | G24: ='3. Data_Input_Sheet'!E46 -> 117533.8725 | K24: =IF(ISBLANK('3. Data_Input_Sheet'!M46),'6. Taxes_PILs'!G24,'3. Data_Input_Sheet'!M46) -> 97489.49709 | O24: =IF(ISBLANK('3. Data_Input_Sheet'!U46),'6. Taxes_PILs'!K24,'3. Data_Input_Sheet'!U46) -> 97489.49709
B25: 5 | D25: Capital taxes | G25: ='3. Data_Input_Sheet'!E48 -> 0 | K25: =IF(ISBLANK('3. Data_Input_Sheet'!M48),'6. Taxes_PILs'!G25,'3. Data_Input_Sheet'!M48) -> 0 | O25: =IF(ISBLANK('3. Data_Input_Sheet'!U48),'6. Taxes_PILs'!K25,'3. Data_Input_Sheet'!U48) -> 0
G26: =SUM(G24:G25) -> 117533.8725 | K26: =SUM(K24:K25) -> 97489.49709 | O26: =SUM(O24:O25) -> 97489.49709
B27: 6 | D27: Total taxes
B29: 7 | D29: Gross-up of Income Taxes | G29: =(G24/(1-G41))-G24 -> 42376.1581 | K29: =(K24/(1-K41))-K24 -> 35149.27446 | O29: =(O24/(1-O41))-O24 -> 35149.27446
B31: 8 | D31: Grossed-up Income Taxes | G31: =G24+G29 -> 159910.0306 | K31: =K24+K29 -> 132638.7715 | O31: =O24+O29 -> 132638.7715
B33: 9 | D33: PILs / tax Allowance (Grossed-up Income taxes + Capital taxes) | G33: =G26+G29 -> 159910.0306 | K33: =K29+K26 -> 132638.7715 | O33: =O29+O26 -> 132638.7715
B35: 10 | D35: Other tax Credits | G35: ='3. Data_Input_Sheet'!E51 -> -51000 | K35: =IF(ISBLANK('3. Data_Input_Sheet'!M51),G35,'3. Data_Input_Sheet'!M51) -> -51000 | O35: =IF(ISBLANK('3. Data_Input_Sheet'!U51),K35,'3. Data_Input_Sheet'!U51) -> -51000
D37: Tax Rates
B39: 11 | D39: Federal tax (%) | G39: ='3. Data_Input_Sheet'!E49 -> 0.15 | K39: =IF(ISBLANK('3. Data_Input_Sheet'!M49),G39,'3. Data_Input_Sheet'!M49) -> 0.15 | O39: =IF(ISBLANK('3. Data_Input_Sheet'!U49),K39,'3. Data_Input_Sheet'!U49) -> 0.15
B40: 12 | D40: Provincial tax (%) | G40: ='3. Data_Input_Sheet'!E50 -> 0.115 | K40: =IF(ISBLANK('3. Data_Input_Sheet'!M50),G40,'3. Data_Input_Sheet'!M50) -> 0.115 | O40: =IF(ISBLANK('3. Data_Input_Sheet'!U50),K40,'3. Data_Input_Sheet'!U50) -> 0.115
B41: 13 | D41: Total tax rate (%) | G41: =G39+G40 -> 0.265 | K41: =K39+K40 -> 0.265 | O41: =O39+O40 -> 0.265
B44: Notes
D45: Capital Taxes not applicable after July 1, 2010 (i.e. for 2011 and later test years)

Sheet 7. Cost_of_Capital
B5: Capitalization/Cost of Capital
B11: Line No. | D11: Particulars | F11: Capitalization Ratio | L11: Cost Rate | P11: Return
F13: Initial Application
F15: (%) | J15: ($) | L15: (%) | P15: ($)
D16: Debt
B17: 1 | D17: Long-term Debt | F17: ='3. Data_Input_Sheet'!E55 -> 0.56 | J17: =$J$26*F17 -> 48471681.04 | L17: ='3. Data_Input_Sheet'!E62 -> 0.0477 | P17: =L17*J17 -> 2312099.185
B18: 2 | D18: Short-term Debt | F18: ='3. Data_Input_Sheet'!E56 -> 0.04 | J18: =$J$26*F18 -> 3462262.931 | L18: ='3. Data_Input_Sheet'!E63 -> 0.0216 | P18: =L18*J18 -> 74784.87931
B19: 3 | D19: Total Debt | F19: =SUM(F17:F18) -> 0.6 | J19: =SUM(J17:J18) -> 51933943.97 | L19: =IF(F19=0,0,SUMPRODUCT(F17:F18,L17:L18)/F19) -> 0.04596 | P19: =SUM(P17:P18) -> 2386884.065
D21: Equity
B22: 4 | D22: Common Equity | F22: ='3. Data_Input_Sheet'!E57 -> 0.4 | J22: =$J$26*F22 -> 34622629.31 | L22: ='3. Data_Input_Sheet'!E64 -> 0.093 | P22: =L22*J22 -> 3219904.526
B23: 5 | D23: Preferred Shares | F23: ='3. Data_Input_Sheet'!E58 -> 0 | J23: =$J$26*F23 -> 0 | L23: ='3. Data_Input_Sheet'!E65 -> 0 | P23: =L23*J23 -> 0
B24: 6 | D24: Total Equity | F24: =SUM(F22:F23) -> 0.4 | J24: =SUM(J22:J23) -> 34622629.31 | L24: =IF(F24=0,0,SUMPRODUCT(F22:F23,L22:L23)/F24) -> 0.093 | P24: =SUM(P22:P23) -> 3219904.526
B26: 7 | D26: Total | F26: =SUM(F19,F24) -> 1 | J26: ='4. Rate_Base'!G18 -> 86556573.28 | L26: =(L19*F19)+(L24*F24) -> 0.064776 | P26: =P19+P24 -> 5606788.591
F29: ='1. Info'!AC1 -> Interrogatory Responses
F31: (%) | J31: ($) | L31: (%) | P31: ($)
D32: Debt
B33: 1 | D33: Long-term Debt | F33: ='3. Data_Input_Sheet'!M55 -> 0.56 | J33: =$J$42*F33 -> 48832879.38 | L33: ='3. Data_Input_Sheet'!M62 -> 0.0454 | P33: =L33*J33 -> 2217012.724
B34: 2 | D34: Short-term Debt | F34: ='3. Data_Input_Sheet'!M56 -> 0.04 | J34: =$J$42*F34 -> 3488062.813 | L34: ='3. Data_Input_Sheet'!M63 -> 0.0165 | P34: =L34*J34 -> 57553.03641
B35: 3 | D35: Total Debt | F35: =SUM(F33:F34) -> 0.6 | J35: =SUM(J33:J34) -> 52320942.19 | L35: =IF(F35=0,0,SUMPRODUCT(F33:F34,L33:L34)/F35) -> 0.04347333333 | P35: =SUM(P33:P34) -> 2274565.76
D37: Equity
B38: 4 | D38: Common Equity | F38: ='3. Data_Input_Sheet'!M57 -> 0.4 | J38: =$J$42*F38 -> 34880628.13 | L38: ='3. Data_Input_Sheet'!M64 -> 0.0919 | P38: =L38*J38 -> 3205529.725
B39: 5 | D39: Preferred Shares | F39: ='3. Data_Input_Sheet'!M58 -> 0 | J39: =$J$42*F39 -> 0 | L39: ='3. Data_Input_Sheet'!M65 -> 0 | P39: =L39*J39 -> 0
B40: 6 | D40: Total Equity | F40: =SUM(F38:F39) -> 0.4 | J40: =SUM(J38:J39) -> 34880628.13 | L40: =IF(F40=0,0,SUMPRODUCT(F38:F39,L38:L39)/F40) -> 0.0919 | P40: =SUM(P38:P39) -> 3205529.725
B42: 7 | D42: Total | F42: =F35+F40 -> 1 | J42: ='4. Rate_Base'!O18 -> 87201570.32 | L42: =(L35*F35)+(L40*F40) -> 0.062844 | P42: =P35+P40 -> 5480095.485
F45: Per Board Decision
F47: (%) | J47: ($) | L47: (%) | P47: ($)
D48: Debt
B49: 8 | D49: Long-term Debt | F49: =IF(ISBLANK('3. Data_Input_Sheet'!U55),F33,'3. Data_Input_Sheet'!U55) -> 0.56 | J49: =$J$58*F49 -> 48832879.38 | L49: =IF(ISBLANK('3. Data_Input_Sheet'!U62),L17,'3. Data_Input_Sheet'!U62) -> 0.0477 | P49: =L49*J49 -> 2329328.346
B50: 9 | D50: Short-term Debt | F50: =IF(ISBLANK('3. Data_Input_Sheet'!U56),F34,'3. Data_Input_Sheet'!U56) -> 0.04 | J50: =$J$58*F50 -> 3488062.813 | L50: =IF(ISBLANK('3. Data_Input_Sheet'!U63),L18,'3. Data_Input_Sheet'!U63) -> 0.0216 | P50: =L50*J50 -> 75342.15675
B51: 10 | D51: Total Debt | F51: =SUM(F49:F50) -> 0.6 | J51: =SUM(J49:J50) -> 52320942.19 | L51: =IF(F51=0,0,SUMPRODUCT(F49:F50,L49:L50)/F51) -> 0.04596 | P51: =SUM(P49:P50) -> 2404670.503
D53: Equity
B54: 11 | D54: Common Equity | F54: =IF(ISBLANK('3. Data_Input_Sheet'!U57),F38,'3. Data_Input_Sheet'!U57) -> 0.4 | J54: =$J$58*F54 -> 34880628.13 | L54: =IF(ISBLANK('3. Data_Input_Sheet'!U64),L22,'3. Data_Input_Sheet'!U64) -> 0.093 | P54: =L54*J54 -> 3243898.416
B55: 12 | D55: Preferred Shares | F55: =IF(ISBLANK('3. Data_Input_Sheet'!U58),F39,'3. Data_Input_Sheet'!U58) -> 0 | J55: =$J$58*F55 -> 0 | L55: =IF(ISBLANK('3. Data_Input_Sheet'!U65),L23,'3. Data_Input_Sheet'!U65) -> 0 | P55: =L55*J55 -> 0
B56: 13 | D56: Total Equity | F56: =SUM(F54:F55) -> 0.4 | J56: =SUM(J54:J55) -> 34880628.13 | L56: =IF(F56=0,0,SUMPRODUCT(F54:F55,L54:L55)/F56) -> 0.093 | P56: =SUM(P54:P55) -> 3243898.416
B58: 14 | D58: Total | F58: =F51+F56 -> 1 | J58: ='4. Rate_Base'!W18 -> 87201570.32 | L58: =(L51*F51)+(L56*F56) -> 0.064776 | P58: =P51+P56 -> 5648568.919
B61: Notes
B62: (1) | D62: ='3. Data_Input_Sheet'!C71 -> Data in column E is for Application as originally filed. For updated revenue requirement as a result of interrogatory responses, technical or settlement conferences, etc., use colimn M and Adjustments in column I

Sheet 8. Rev_Def_Suff
P1: =CONCATENATE('2. Table of Contents'!$F$6," ",'2. Table of Contents'!$G$6) -> 
B10: Revenue Deficiency/Sufficiency
F13: Initial Application | J13: =IF(ISBLANK('3. Data_Input_Sheet'!M12),"",'3. Data_Input_Sheet'!M12) -> Interrogatory Responses | N13: ='3. Data_Input_Sheet'!U12 -> Per Board Decision
B15: Line No. | D15: Particulars | F15: At Current Approved Rates | H15: At Proposed Rates | J15: At Current Approved Rates | L15: At Proposed Rates | N15: At Current Approved Rates | P15: At Proposed Rates
B19: 1 | D19: Revenue Deficiency from Below | H19: =F52 -> 155996.697 | L19: =J52 -> -135005.9057 | P19: =N52 -> 47301.13781
B20: 2 | D20: Distribution Revenue | F20: ='3. Data_Input_Sheet'!E25 -> 18033987.17 | H20: ='3. Data_Input_Sheet'!E26-H19 -> 18033987.17 | J20: =IF(ISBLANK('3. Data_Input_Sheet'!M25),'3. Data_Input_Sheet'!E25,'3. Data_Input_Sheet'!M25) -> 18147267.71 | L20: =IF(ISBLANK('3. Data_Input_Sheet'!M26),'3. Data_Input_Sheet'!E26-L19,'3. Data_Input_Sheet'!M26-L19) -> 18147267.71 | N20: =IF(ISBLANK('3. Data_Input_Sheet'!U25),'3. Data_Input_Sheet'!M25,'3. Data_Input_Sheet'!U25) -> 18147267.71 | P20: =IF(ISBLANK('3. Data_Input_Sheet'!U26),'3. Data_Input_Sheet'!M26-P19,'3. Data_Input_Sheet'!U26-P19) -> 17964960.67
B21: 3 | D21: Other Operating Revenue Offsets - net | F21: ='5. Utility Income'!F48 -> 1188521.082 | H21: ='5. Utility Income'!F48 -> 1188521.082 | J21: ='5. Utility Income'!N48 -> 1188521.082 | L21: =J21 -> 1188521.082 | N21: ='5. Utility Income'!V48 -> 1188521.082 | P21: ='5. Utility Income'!V48 -> 1188521.082
B22: 4 | D22: Total Revenue | F22: =SUM(F20:F21) -> 19222508.26 | H22: =SUM(H19:H21) -> 19378504.95 | J22: =SUM(J20:J21) -> 19335788.79 | L22: =SUM(L19:L21) -> 19200782.89 | N22: =SUM(N20:N21) -> 19335788.79 | P22: =SUM(P19:P21) -> 19200782.89
B24: 5 | D24: Operating Expenses | F24: ='5. Utility Income'!F27 -> 13611806.33 | H24: ='5. Utility Income'!F27 -> 13611806.33 | J24: ='5. Utility Income'!N27 -> 13588048.63 | L24: ='5. Utility Income'!N27 -> 13588048.63 | N24: ='5. Utility Income'!V27 -> 13588048.63 | P24: ='5. Utility Income'!V27 -> 13588048.63
B25: 6 | D25: Deemed Interest Expense | F25: ='5. Utility Income'!F30 -> 2386884.065 | H25: ='5. Utility Income'!F30 -> 2386884.065 | J25: ='5. Utility Income'!N30 -> 2274565.76 | L25: ='5. Utility Income'!N30 -> 2274565.76 | N25: ='5. Utility Income'!V30 -> 2404670.503 | P25: ='5. Utility Income'!V30 -> 2404670.503
B26: 8 | D26: Total Cost and Expenses | F26: =SUM(F24:F25) -> 15998690.4 | H26: =SUM(H24:H25) -> 15998690.4 | J26: =SUM(J24:J25) -> 15862614.39 | L26: =SUM(L24:L25) -> 15862614.39 | N26: =SUM(N24:N25) -> 15992719.14 | P26: =SUM(P24:P25) -> 15992719.14
B28: 9 | D28: Utility Income Before Income Taxes | F28: =F22-F26 -> 3223817.86 | H28: =H22-H26 -> 3379814.557 | J28: =J22-J26 -> 3473174.402 | L28: =L22-L26 -> 3338168.496 | N28: =N22-N26 -> 3343069.659 | P28: =P22-P26 -> 3208063.753
B30: 10 | D30: Tax Adjustments to Accounting Income per 2013 PILs model | F30: ='3. Data_Input_Sheet'!E44 -> -2583927.649 | H30: ='3. Data_Input_Sheet'!E44 -> -2583927.649 | J30: =IF(ISBLANK('3. Data_Input_Sheet'!M44),'3. Data_Input_Sheet'!E44,'3. Data_Input_Sheet'!M44) -> -2645192 | L30: =IF(ISBLANK('3. Data_Input_Sheet'!M44),'3. Data_Input_Sheet'!E44,'3. Data_Input_Sheet'!M44) -> -2645192 | N30: =IF(ISBLANK('3. Data_Input_Sheet'!U44),'3. Data_Input_Sheet'!M44,'3. Data_Input_Sheet'!U44) -> -2645192 | P30: =IF(ISBLANK('3. Data_Input_Sheet'!U44),'3. Data_Input_Sheet'!M44,'3. Data_Input_Sheet'!U44) -> -2645192
B31: 11 | D31: Taxable Income | F31: =SUM(F28:F30) -> 639890.2108 | H31: =SUM(H28:H30) -> 795886.9078 | J31: =SUM(J28+J30) -> 827982.4021 | L31: =L28+L30 -> 692976.4964 | N31: =SUM(N28+N30) -> 697877.6592 | P31: =P28+P30 -> 562871.7535
B33: 12 | D33: Income Tax Rate | F33: ='6. Taxes_PILs'!G41 -> 0.265 | H33: ='6. Taxes_PILs'!G41 -> 0.265 | J33: ='6. Taxes_PILs'!K41 -> 0.265 | L33: ='6. Taxes_PILs'!K41 -> 0.265 | N33: ='6. Taxes_PILs'!O41 -> 0.265 | P33: ='6. Taxes_PILs'!O41 -> 0.265
B34: 13 | D34: Income Tax on Taxable Income | F34: =F31*F33 -> 169570.9059 | H34: =H31*H33 -> 210910.0306 | J34: =J31*J33 -> 219415.3366 | L34: =L31*L33 -> 183638.7715 | N34: =N31*N33 -> 184937.5797 | P34: =P31*P33 -> 149161.0147
B35: 14 | D35: Income Tax Credits | F35: ='3. Data_Input_Sheet'!E51 -> -51000 | H35: ='3. Data_Input_Sheet'!E51 -> -51000 | J35: =IF(ISBLANK('3. Data_Input_Sheet'!M51),'3. Data_Input_Sheet'!E51,'3. Data_Input_Sheet'!M51) -> -51000 | L35: =IF(ISBLANK('3. Data_Input_Sheet'!M51),'3. Data_Input_Sheet'!E51,'3. Data_Input_Sheet'!M51) -> -51000 | N35: =IF(ISBLANK('3. Data_Input_Sheet'!U51),'3. Data_Input_Sheet'!M51,'3. Data_Input_Sheet'!U51) -> -51000 | P35: =IF(ISBLANK('3. Data_Input_Sheet'!U51),'3. Data_Input_Sheet'!M51,'3. Data_Input_Sheet'!U51) -> -51000
B36: 15 | D36: Utility Net Income | F36: =F28-SUM(F34:F35) -> 3105246.954 | H36: ='5. Utility Income'!F37 -> 3219904.526 | J36: =J28-SUM(J34:J35) -> 3304759.066 | L36: ='5. Utility Income'!N37 -> 3205529.725 | N36: =N28-SUM(N34:N35) -> 3209132.08 | P36: ='5. Utility Income'!V37 -> 3075424.982
B38: 16 | D38: Utility Rate Base | F38: ='4. Rate_Base'!G18 -> 86556573.28 | H38: ='4. Rate_Base'!G18 -> 86556573.28 | J38: ='4. Rate_Base'!O18 -> 87201570.32 | L38: ='4. Rate_Base'!O18 -> 87201570.32 | N38: ='4. Rate_Base'!W18 -> 87201570.32 | P38: ='4. Rate_Base'!W18 -> 87201570.32
B40: 17 | D40: Deemed Equity Portion of Rate Base | F40: ='7. Cost_of_Capital'!J24 -> 34622629.31 | H40: =F40 -> 34622629.31 | J40: ='7. Cost_of_Capital'!J40 -> 34880628.13 | L40: =J40 -> 34880628.13 | N40: ='7. Cost_of_Capital'!J56 -> 34880628.13 | P40: =N40 -> 34880628.13
B42: 18 | D42: Income/(Equity Portion of Rate Base) | F42: =IF(F40=0,0,F36/F40) -> 0.08968836323 | H42: =IF(H40=0,0,H36/H40) -> 0.093 | J42: =IF(J40=0,0,J36/J40) -> 0.09474482666 | L42: =IF(L40=0,0,L36/L40) -> 0.0919 | N42: =IF(N40=0,0,N36/N40) -> 0.09200327666 | P42: =IF(P40=0,0,P36/P40) -> 0.08817
B43: 19 | D43: Target Return - Equity on Rate Base | F43: ='7. Cost_of_Capital'!L24 -> 0.093 | H43: ='7. Cost_of_Capital'!L24 -> 0.093 | J43: ='7. Cost_of_Capital'!L40 -> 0.0919 | L43: ='7. Cost_of_Capital'!L40 -> 0.0919 | N43: ='7. Cost_of_Capital'!L56 -> 0.093 | P43: ='7. Cost_of_Capital'!L56 -> 0.093
B44: 20 | D44: Deficiency/Sufficiency in Return on Equity | F44: =F42-F43 -> -0.003311636769 | H44: =H42-H43 -> 0 | J44: =J42-J43 -> 0.002844826657 | L44: =L42-L43 -> 1.110223025e-16 | N44: =N42-N43 -> -0.0009967233434 | P44: =P42-P43 -> -0.00483
B46: 21 | D46: Indicated Rate of Return | F46: =IF(F38=0,0,(F36+F25)/F38) -> 0.06345134529 | H46: =IF(H38=0,0,(H36+H25)/H38) -> 0.064776 | J46: =IF(J38=0,0,(J36+J25)/J38) -> 0.06398193066 | L46: =IF(L40=0,0,(L36+L25)/L38) -> 0.062844 | N46: =IF(N38=0,0,(N36+N25)/N38) -> 0.06437731066 | P46: =IF(P40=0,0,(P36+P25)/P38) -> 0.062844
B47: 22 | D47: Requested Rate of Return on Rate Base | F47: ='7. Cost_of_Capital'!L26 -> 0.064776 | H47: ='7. Cost_of_Capital'!L26 -> 0.064776 | J47: ='7. Cost_of_Capital'!L42 -> 0.062844 | L47: ='7. Cost_of_Capital'!L42 -> 0.062844 | N47: ='7. Cost_of_Capital'!L58 -> 0.064776 | P47: ='7. Cost_of_Capital'!L58 -> 0.064776
B48: 23 | D48: Deficiency/Sufficiency in Rate of Return | F48: =F46-F47 -> -0.001324654708 | H48: =H46-H47 -> 0 | J48: =J46-J47 -> 0.001137930663 | L48: =L46-L47 -> 0 | N48: =N46-N47 -> -0.0003986893374 | P48: =P46-P47 -> -0.001932
B50: 24 | D50: Target Return on Equity | F50: =H50 -> 3219904.526 | H50: ='7. Cost_of_Capital'!P24 -> 3219904.526 | J50: =L50 -> 3205529.725 | L50: ='7. Cost_of_Capital'!P40 -> 3205529.725 | N50: =P50 -> 3243898.416 | P50: ='7. Cost_of_Capital'!P56 -> 3243898.416
B51: 25 | D51: Revenue Deficiency/(Sufficiency) | F51: =F50-F36 -> 114657.5723 | H51: =H38*H48 -> 0 | J51: =J50-J36 -> -99229.34069 | L51: =L38*L48 -> 0 | N51: =N50-N36 -> 34766.33629 | P51: =P38*P48 -> -168473.4339
B52: 26 | D52: Gross Revenue Deficiency/(Sufficiency) | F52: =F51/(1-F33) -> 155996.697 | G52: (1) | J52: =J51/(1-J33) -> -135005.9057 | K52: (1) | N52: =N51/(1-N33) -> 47301.13781 | O52: (1)
B55: Notes:
B56: (1) | D56: Revenue Deficiency/Sufficiency divided by (1 - Tax Rate)

Sheet 9. Rev_Reqt
B11: Revenue Requirement
B13: Line No. | D13: Particulars | F13: Application | J13: =IF(ISBLANK('3. Data_Input_Sheet'!M12),"",'3. Data_Input_Sheet'!M12) -> Interrogatory Responses | N13: ='3. Data_Input_Sheet'!U12 -> Per Board Decision
B15: 1 | D15: OM&A Expenses | F15: ='5. Utility Income'!F22 -> 9495813.06 | J15: ='5. Utility Income'!N22 -> 9495813.06 | N15: ='5. Utility Income'!V22 -> 9495813.06
B16: 2 | D16: Amortization/Depreciation | F16: ='5. Utility Income'!F23 -> 3849791.271 | J16: ='5. Utility Income'!N23 -> 3826033.573 | N16: ='5. Utility Income'!V23 -> 3826033.573
B17: 3 | D17: Property Taxes | F17: ='5. Utility Income'!F24 -> 243162 | J17: ='5. Utility Income'!N24 -> 243162 | N17: ='5. Utility Income'!V24 -> 243162
B18: 4 | D18: Capital Taxes | F18: ='6. Taxes_PILs'!G25 -> 0 | J18: ='6. Taxes_PILs'!K25 -> 0 | N18: ='6. Taxes_PILs'!O25 -> 0
B19: 5 | D19: Income Taxes (Grossed up) | F19: ='6. Taxes_PILs'!G33-F18 -> 159910.0306 | J19: ='6. Taxes_PILs'!K33-J18 -> 132638.7715 | N19: ='6. Taxes_PILs'!O33-N18 -> 132638.7715
B20: 6 | D20: Other Expenses | F20: ='5. Utility Income'!F26 -> 23040 | J20: ='5. Utility Income'!N26 -> 23040 | N20: ='5. Utility Income'!V26 -> 23040
B21: 7 | D21: Return
D22: Deemed Interest Expense | F22: ='8. Rev_Def_Suff'!F25 -> 2386884.065 | J22: ='8. Rev_Def_Suff'!L25 -> 2274565.76 | N22: ='8. Rev_Def_Suff'!P25 -> 2404670.503
D23: Return on Deemed Equity | F23: ='8. Rev_Def_Suff'!F50 -> 3219904.526 | J23: ='8. Rev_Def_Suff'!L50 -> 3205529.725 | N23: ='8. Rev_Def_Suff'!P50 -> 3243898.416
B25: 8 | D25: Service Revenue Requirement (before Revenues) | F25: =SUM(F15:F23) -> 19378504.95 | J25: =SUM(J15:J23) -> 19200782.89 | N25: =SUM(N15:O23) -> 19369256.32
B27: 9 | D27: Revenue Offsets | F27: ='3. Data_Input_Sheet'!E33 -> 1188521.082 | J27: ='3. Data_Input_Sheet'!M33 -> 1188521.082 | N27: ='3. Data_Input_Sheet'!U33 -> 0
B28: 10 | D28: Base Revenue Requirement | F28: =F25-F27 -> 18189983.87 | J28: =J25-J27 -> 18012261.81 | N28: =N25-N27 -> 19369256.32
D29: (excluding Tranformer Owership Allowance credit adjustment)
B31: 11 | D31: Distribution revenue | F31: ='5. Utility Income'!F16 -> 18189983.87 | J31: ='5. Utility Income'!N16 -> 18012261.81 | N31: ='5. Utility Income'!V16 -> 18012261.81
B32: 12 | D32: Other revenue | F32: ='5. Utility Income'!F17 -> 1188521.082 | J32: ='5. Utility Income'!N17 -> 1188521.082 | N32: ='5. Utility Income'!V17 -> 1188521.082
F33: =SUM(F31:F32) -> 19378504.95 | J33: =SUM(J31:J32) -> 19200782.89 | N33: =SUM(N31:N32) -> 19200782.89
B34: 13 | D34: Total revenue
F35: =F33-F25 -> 0 | J35: =J33-J25 -> 0 | N35: =N33-N25 -> -168473.4339
B36: 14 | D36: Difference (Total Revenue Less Distribution Revenue Requirement before Revenues) | H36: (1) | L36: (1) | Q36: (1)
B38: Notes
B39: (1) | D39: Line 11 - Line 8

Sheet 10. Tracking_Sheet
B14: Tracking Form
B15: The last row shown is the most current estimate of the cost of service data reflecting the original application and any updates provided by the applicant distributor (for updated evidence, responses to interrogatories, undertakings, etc.) Please ensure a Reference (Column B) and/or Item Description (Column C) is entered. Please note that unused rows will automatically be hidden and the PRINT AREA set when the PRINT BUTTON on Sheet 1 is activated. (1) Short reference to evidence material (interrogatory response, undertaking, exhibit number, Board Decision, Code, Guideline, Report of the Board, etc.) (2) Short description of change, issue, etc. 60 Tracking Rows have been provided below. If you require more, please contact Industry Relations @ IndustryRelations@ontarioenergyboard.ca.
B16: Summary of Proposed Changes
D18: Cost of Capital | F18: Rate Base and Capital Expenditures | I18: Operating Expenses | L18: Revenue Requirement
B19: Reference (1) | C19: Item / Description (2) | D19: Regulated Return on Capital | E19: Regulated Rate of Return | F19: Rate Base | G19: Working Capital | H19: Working Capital Allowance ($) | I19: Amortization / Depreciation | J19: Taxes/PILs | K19: OM&A | L19: Service Revenue Requirement | M19: Other Revenues | N19: Base Revenue Requirement | O19: Grossed up Revenue Deficiency / Sufficiency
C21: Original Application | D21: ='7. Cost_of_Capital'!P26 -> 5606788.591 | E21: ='7. Cost_of_Capital'!L26 -> 0.064776 | F21: ='4. Rate_Base'!G18 -> 86556573.28 | G21: ='4. Rate_Base'!G26 -> 120651183.1 | H21: ='4. Rate_Base'!G30 -> 9917527.25 | I21: ='9. Rev_Reqt'!F16 -> 3849791.271 | J21: ='9. Rev_Reqt'!F19 -> 159910.0306 | K21: ='9. Rev_Reqt'!F15 -> 9495813.06 | L21: ='9. Rev_Reqt'!F25 -> 19378504.95 | M21: ='9. Rev_Reqt'!F32 -> 1188521.082 | N21: ='9. Rev_Reqt'!F28 -> 18189983.87 | O21: ='8. Rev_Def_Suff'!F52 -> 155996.697
A23: 1 | B23: Update Nov6/15, Part 1 | C23: SMP Streetlight Update, Load Forecast Change | D23: 5606788.591 | E23: 0.0648 | F23: 86556573.28 | G23: 120651183.1 | H23: 9917527.25 | I23: 3849791.271 | J23: 159910.0306 | K23: 9495813.06 | L23: 19378504.95 | M23: 1188521.082 | N23: 18189983.87 | O23: 159779.4304 | Q23: =IF(AND(ISBLANK(B23), ISBLANK(C23)), "X", "") -> 
C24: Change | D24: =IF(D23="","",D23-D21) -> 0 | E24: =IF(E23="","",E23-E21) -> 2.4e-05 | F24: 0 | G24: 0 | H24: 0 | I24: 0 | J24: 0 | K24: 0 | L24: 0 | M24: 0 | N24: 0 | O24: 3782.733416
A26: 2 | B26: Update Nov6/15, Part 2 | C26: Update Cost of Capital Parameters | D26: 5439561.291 | E26: 0.0628 | F26: 86556573.28 | G26: 120651183.1 | H26: 9917527.25 | I26: 3849791.271 | J26: 146178.7429 | K26: 9495813.06 | L26: 19197546.36 | M26: 1188521.082 | N26: 18009025.28 | O26: -21179.15687 | Q26: =IF(AND(ISBLANK(B26), ISBLANK(C26)), "X", "") -> 
C27: Change | D27: =IF(D26="","",D26-D23) -> -167227.2996 | E27: -0.002 | F27: 0 | G27: 0 | H27: 0 | I27: 0 | J27: -13731.28768 | K27: 0 | L27: -180958.5873 | M27: 0 | N27: -180958.5873 | O27: -180958.5873
A29: 3 | B29: Update Nov6/15, Part 3 | C29: Update WCA Factor (8.22% to 8.14%) | D29: 5433495.529 | E29: 0.0628 | F29: 86460052.33 | G29: 120651183.1 | H29: 9821006.303 | I29: 3849791.271 | J29: 144899.4923 | K29: 9495813.06 | L29: 19190201.35 | M29: 1188521.082 | N29: 18001680.27 | O29: -28524.16977 | Q29: =IF(AND(ISBLANK(B29), ISBLANK(C29)), "X", "") -> 
C30: Change | D30: =IF(D29="","",D29-D26) -> -6065.76236 | E30: 0 | F30: -96520.94647 | G30: 0 | H30: -96520.94647 | I30: 0 | J30: -1279.250541 | K30: 0 | L30: -7345.012901 | M30: 0 | N30: -7345.012901 | O30: -7345.012901
A32: 4 | B32: Update Nov6/15, Part 4 | C32: Update COP Rates to Nov1 | D32: 5476980.056 | E32: 0.0628 | F32: 87151996.31 | G32: 129151723.4 | H32: 10512950.28 | I32: 3849791.271 | J32: 154070.2448 | K32: 9495813.06 | L32: 19242856.63 | M32: 1188521.082 | N32: 18054335.55 | O32: 24131.11022 | Q32: =IF(AND(ISBLANK(B32), ISBLANK(C32)), "X", "") -> 
C33: Change | D33: =IF(D32="","",D32-D29) -> 43484.52749 | E33: 0 | F33: 691943.9801 | G33: 8500540.297 | H33: 691943.9801 | I33: 0 | J33: 9170.752501 | K33: 0 | L33: 52655.27999 | M33: 0 | N33: 52655.27999 | O33: 52655.27999
A35: 5 | B35: IRR 2-EP-9 | C35: Update Fixed Assets with 10+2 Outlook | D35: 5473247.197 | E35: 0.0628 | F35: 87092597.49 | G35: 129151723.4 | H35: 10512950.28 | I35: 3826033.573 | J35: 153282.9963 | K35: 9495813.06 | L35: 19214578.83 | M35: 1188521.082 | N35: 18026057.74 | O35: -4146.696074 | Q35: =IF(AND(ISBLANK(B35), ISBLANK(C35)), "X", "") -> 
C36: Change | D36: =IF(D35="","",D35-D32) -> -3732.859569 | E36: 0 | F36: -59398.82199 | G36: 0 | H36: 0 | I36: -23757.69818 | J36: -787.2485504 | K36: 0 | L36: -28277.8063 | M36: 0 | N36: -28277.8063 | O36: -28277.8063
A38: 6 | B38: IRR 2-EP-15 | C38: Update WCA Factor (8.14% to 8.21%) | D38: 5478928.684 | E38: 0.062844 | F38: 87183003.7 | G38: 129151723.4 | H38: 10603356.49 | I38: 3826033.573 | J38: 154481.2045 | K38: 9495813.06 | L38: 19221458.52 | M38: 1188521.082 | N38: 18032937.44 | O38: 2732.999748 | Q38: =IF(AND(ISBLANK(B38), ISBLANK(C38)), "X", "") -> 
C39: Change | D39: =IF(D38="","",D38-D35) -> 5681.487633 | E39: 4.4e-05 | F39: 90406.20637 | G39: 0 | H39: 90406.20637 | I39: 0 | J39: 1198.208189 | K39: 0 | L39: 6879.695822 | M39: 0 | N39: 6879.695822 | O39: 6879.695822
A41: 7 | B41: IRR 3-VECC-18 | C41: Remove WMP from 2006-2012 Historic Data | D41: 5479589.559 | E41: 0.062844 | F41: 87193519.82 | G41: 129279812.5 | H41: 10613872.61 | I41: 3826033.573 | J41: 154620.581 | K41: 9495813.06 | L41: 19222258.77 | M41: 1188521.082 | N41: 18033737.69 | O41: -2982.979173 | Q41: =IF(AND(ISBLANK(B41), ISBLANK(C41)), "X", "") -> 
C42: Change | D42: =IF(D41="","",D41-D38) -> 660.875049 | E42: 0 | F42: 10516.12006 | G42: 128089.1603 | H42: 10516.12006 | I42: 0 | J42: 139.376506 | K42: 0 | L42: 800.251555 | M42: 0 | N42: 800.251555 | O42: -5715.978921
A44: 8 | B44: IRR 3-VECC-21 | C44: Add Historic Standby kW to Large Use (CK) Class | D44: 5479848.222 | E44: 0.062844 | F44: 87197635.76 | G44: 129329945.9 | H44: 10617988.56 | I44: 3826033.573 | J44: 154675.1321 | K44: 9495813.06 | L44: 19222571.99 | M44: 1188521.082 | N44: 18034050.9 | O44: -27393.58615 | Q44: =IF(AND(ISBLANK(B44), ISBLANK(C44)), "X", "") -> 
C45: Change | D45: =IF(D44="","",D44-D41) -> 258.6624985 | E45: 0 | F45: 4115.94581 | G45: 50133.3229 | H45: 4115.94581 | I45: 0 | J45: 54.55112179 | K45: 0 | L45: 313.2136203 | M45: 0 | N45: 313.2136203 | O45: -24410.60698
A47: 9 | B47: IRR 3-VECC-22 | C47: Update 2014 CDM Persistence to IESO Final Results | D47: 5479825.7 | E47: 0.062844 | F47: 87197277.38 | G47: 129325580.7 | H47: 10617630.18 | I47: 3826033.573 | J47: 154670.3823 | K47: 9495813.06 | L47: 19222544.71 | M47: 1188521.082 | N47: 18034023.63 | O47: -27633.52836 | Q47: =IF(AND(ISBLANK(B47), ISBLANK(C47)), "X", "") -> 
C48: Change | D48: =IF(D47="","",D47-D44) -> -22.52189177 | E48: 0 | F48: -358.3777571 | G48: -4365.137114 | H48: -358.3777571 | I48: 0 | J48: -4.749797392 | K48: 0 | L48: -27.27168916 | M48: 0 | N48: -27.27168916 | O48: -239.9422049
A50: 10 | B50: IRR 3-VECC-24 | C50: Update WMP Forecast for 12 mths Actual | D50: 5480095.485 | E50: 0.062844 | F50: 87201570.32 | G50: 129377869.8 | H50: 10621923.11 | I50: 3826033.573 | J50: 154727.2791 | K50: 9495813.06 | L50: 19222871.4 | M50: 1188521.082 | N50: 18034350.31 | O50: -53843.20261 | Q50: =IF(AND(ISBLANK(B50), ISBLANK(C50)), "X", "") -> 
C51: Change | D51: =IF(D50="","",D50-D47) -> 269.7850609 | E51: 0 | F51: 4292.932673 | G51: 52289.07031 | H51: 4292.932673 | I51: 0 | J51: 56.89683583 | K51: 0 | L51: 326.6818967 | M51: 0 | N51: 326.6818967 | O51: -26209.67425
A53: 11 | B53: IRR 3-VECC-25 | C53: Update LF: Include Standby Revenue | D53: 5480095.485 | E53: 0.062844 | F53: 87201570.32 | G53: 129377869.8 | H53: 10621923.11 | I53: 3826033.573 | J53: 154727.2791 | K53: 9495813.06 | L53: 19222871.4 | M53: 1188521.082 | N53: 18034350.31 | O53: -112917.3981 | Q53: =IF(AND(ISBLANK(B53), ISBLANK(C53)), "X", "") -> 
C54: Change | D54: =IF(D53="","",D53-D50) -> 0 | E54: 0 | F54: 0 | G54: 0 | H54: 0 | I54: 0 | J54: 0 | K54: 0 | L54: 0 | M54: 0 | N54: 0 | O54: -59074.1955
A56: 12 | B56: IRR 4-EP-34 | C56: Update CCA | D56: 5480095.485 | E56: 0.062844 | F56: 87201570.32 | G56: 129377869.8 | H56: 10621923.11 | I56: 3826033.573 | J56: 132638.7715 | K56: 9495813.06 | L56: 19200782.89 | M56: 1188521.082 | N56: 18012261.81 | O56: -135005.9057 | Q56: =IF(AND(ISBLANK(B56), ISBLANK(C56)), "X", "") -> 
C57: Change | D57: =IF(D56="","",D56-D53) -> 0 | E57: 0 | F57: 0 | G57: 0 | H57: 0 | I57: 0 | J57: -22088.5076 | K57: 0 | L57: -22088.5076 | M57: 0 | N57: -22088.5076 | O57: -22088.5076
A59: 13 | Q59: =IF(AND(ISBLANK(B59), ISBLANK(C59)), "X", "") -> X
C60: Change | D60: =IF(D59="","",D59-D56) -> 
A62: 14 | Q62: =IF(AND(ISBLANK(B62), ISBLANK(C62)), "X", "") -> X
C63: Change | D63: =IF(D62="","",D62-D59) -> 
A65: 15 | Q65: =IF(AND(ISBLANK(B65), ISBLANK(C65)), "X", "") -> X
C66: Change | D66: =IF(D65="","",D65-D62) -> 
A68: 16 | Q68: =IF(AND(ISBLANK(B68), ISBLANK(C68)), "X", "") -> X
C69: Change | D69: =IF(D68="","",D68-D65) -> 
A71: 17 | Q71: =IF(AND(ISBLANK(B71), ISBLANK(C71)), "X", "") -> X
C72: Change | D72: =IF(D71="","",D71-D68) -> 
A74: 18 | Q74: =IF(AND(ISBLANK(B74), ISBLANK(C74)), "X", "") -> X
C75: Change | D75: =IF(D74="","",D74-D71) -> 
R76: Page Break 1
A77: 19 | Q77: =IF(AND(ISBLANK(B77), ISBLANK(C77)), "X", "") -> X
C78: Change | D78: =IF(D77="","",D77-D74) -> 
A80: 20 | Q80: =IF(AND(ISBLANK(B80), ISBLANK(C80)), "X", "") -> X
C81: Change | D81: =IF(D80="","",D80-D77) -> 
A83: 21 | Q83: =IF(AND(ISBLANK(B83), ISBLANK(C83)), "X", "") -> X
C84: Change | D84: =IF(D83="","",D83-D80) -> 
A86: 22 | Q86: =IF(AND(ISBLANK(B86), ISBLANK(C86)), "X", "") -> X
C87: Change | D87: =IF(D86="","",D86-D83) -> 
A89: 23 | Q89: =IF(AND(ISBLANK(B89), ISBLANK(C89)), "X", "") -> X
C90: Change | D90: =IF(D89="","",D89-D86) -> 
A92: 24 | Q92: =IF(AND(ISBLANK(B92), ISBLANK(C92)), "X", "") -> X
C93: Change | D93: =IF(D92="","",D92-D89) -> 
A95: 25 | Q95: =IF(AND(ISBLANK(B95), ISBLANK(C95)), "X", "") -> X
C96: Change | D96: =IF(D95="","",D95-D92) -> 
A98: 26 | Q98: =IF(AND(ISBLANK(B98), ISBLANK(C98)), "X", "") -> X
C99: Change | D99: =IF(D98="","",D98-D95) -> 
A101: 27 | Q101: =IF(AND(ISBLANK(B101), ISBLANK(C101)), "X", "") -> X
C102: Change | D102: =IF(D101="","",D101-D98) -> 
A104: 28 | Q104: =IF(AND(ISBLANK(B104), ISBLANK(C104)), "X", "") -> X
C105: Change | D105: =IF(D104="","",D104-D101) -> 
A107: 29 | Q107: =IF(AND(ISBLANK(B107), ISBLANK(C107)), "X", "") -> X
C108: Change | D108: =IF(D107="","",D107-D104) -> 
A110: 30 | Q110: =IF(AND(ISBLANK(B110), ISBLANK(C110)), "X", "") -> X
C111: Change | D111: =IF(D110="","",D110-D107) -> 
A113: 31 | Q113: =IF(AND(ISBLANK(B113), ISBLANK(C113)), "X", "") -> X
C114: Change | D114: =IF(D113="","",D113-D110) -> 
A116: 32 | Q116: =IF(AND(ISBLANK(B116), ISBLANK(C116)), "X", "") -> X
C117: Change | D117: =IF(D116="","",D116-D113) -> 
A119: 33 | Q119: =IF(AND(ISBLANK(B119), ISBLANK(C119)), "X", "") -> X
C120: Change | D120: =IF(D119="","",D119-D116) -> 
A122: 34 | Q122: =IF(AND(ISBLANK(B122), ISBLANK(C122)), "X", "") -> X
C123: Change | D123: =IF(D122="","",D122-D119) -> 
A125: 35 | Q125: =IF(AND(ISBLANK(B125), ISBLANK(C125)), "X", "") -> X
C126: Change | D126: =IF(D125="","",D125-D122) -> 
A128: 36 | Q128: =IF(AND(ISBLANK(B128), ISBLANK(C128)), "X", "") -> X
C129: Change | D129: =IF(D128="","",D128-D125) -> 
R130: Page Break 2
A131: 37 | Q131: =IF(AND(ISBLANK(B131), ISBLANK(C131)), "X", "") -> X
C132: Change | D132: =IF(D131="","",D131-D128) -> 
A134: 38 | Q134: =IF(AND(ISBLANK(B134), ISBLANK(C134)), "X", "") -> X
C135: Change | D135: =IF(D134="","",D134-D131) -> 
A137: 39 | Q137: =IF(AND(ISBLANK(B137), ISBLANK(C137)), "X", "") -> X
C138: Change | D138: =IF(D137="","",D137-D134) -> 
A140: 40 | Q140: =IF(AND(ISBLANK(B140), ISBLANK(C140)), "X", "") -> X
C141: Change | D141: =IF(D140="","",D140-D137) -> 
A143: 41 | Q143: =IF(AND(ISBLANK(B143), ISBLANK(C143)), "X", "") -> X
C144: Change | D144: =IF(D143="","",D143-D140) -> 
A146: 42 | Q146: =IF(AND(ISBLANK(B146), ISBLANK(C146)), "X", "") -> X
C147: Change | D147: =IF(D146="","",D146-D143) -> 
A149: 43 | Q149: =IF(AND(ISBLANK(B149), ISBLANK(C149)), "X", "") -> X
C150: Change | D150: =IF(D149="","",D149-D146) -> 
A152: 44 | Q152: =IF(AND(ISBLANK(B152), ISBLANK(C152)), "X", "") -> X
C153: Change | D153: =IF(D152="","",D152-D149) -> 
A155: 45 | Q155: =IF(AND(ISBLANK(B155), ISBLANK(C155)), "X", "") -> X
C156: Change | D156: =IF(D155="","",D155-D152) -> 
A158: 46 | Q158: =IF(AND(ISBLANK(B158), ISBLANK(C158)), "X", "") -> X
C159: Change | D159: =IF(D158="","",D158-D155) -> 
A161: 47 | Q161: =IF(AND(ISBLANK(B161), ISBLANK(C161)), "X", "") -> X
C162: Change | D162: =IF(D161="","",D161-D158) -> 
A164: 48 | Q164: =IF(AND(ISBLANK(B164), ISBLANK(C164)), "X", "") -> X
C165: Change | D165: =IF(D164="","",D164-D161) -> 
A167: 49 | Q167: =IF(AND(ISBLANK(B167), ISBLANK(C167)), "X", "") -> X
C168: Change | D168: =IF(D167="","",D167-D164) -> 
A170: 50 | Q170: =IF(AND(ISBLANK(B170), ISBLANK(C170)), "X", "") -> X
C171: Change | D171: =IF(D170="","",D170-D167) -> 
A173: 51 | Q173: =IF(AND(ISBLANK(B173), ISBLANK(C173)), "X", "") -> X
C174: Change | D174: =IF(D173="","",D173-D170) -> 
A176: 52 | Q176: =IF(AND(ISBLANK(B176), ISBLANK(C176)), "X", "") -> X
C177: Change | D177: =IF(D176="","",D176-D173) -> 
A179: 53 | Q179: =IF(AND(ISBLANK(B179), ISBLANK(C179)), "X", "") -> X
C180: Change | D180: =IF(D179="","",D179-D176) -> 
R181: Page Break 3
A182: 54 | Q182: =IF(AND(ISBLANK(B182), ISBLANK(C182)), "X", "") -> X
C183: Change | D183: =IF(D182="","",D182-D179) -> 
A185: 55 | Q185: =IF(AND(ISBLANK(B185), ISBLANK(C185)), "X", "") -> X
C186: Change | D186: =IF(D185="","",D185-D182) -> 
A188: 56 | Q188: =IF(AND(ISBLANK(B188), ISBLANK(C188)), "X", "") -> X
C189: Change | D189: =IF(D188="","",D188-D185) -> 
A191: 57 | Q191: =IF(AND(ISBLANK(B191), ISBLANK(C191)), "X", "") -> X
C192: Change | D192: =IF(D191="","",D191-D188) -> 
A194: 58 | Q194: =IF(AND(ISBLANK(B194), ISBLANK(C194)), "X", "") -> X
C195: Change | D195: =IF(D194="","",D194-D191) -> 
A197: 59 | Q197: =IF(AND(ISBLANK(B197), ISBLANK(C197)), "X", "") -> X
C198: Change | D198: =IF(D197="","",D197-D194) -> 
A200: 60 | Q200: =IF(AND(ISBLANK(B200), ISBLANK(C200)), "X", "") -> X
C201: Change | D201: =IF(D200="","",D200-D197) -> 
R203: Page Break 4
